bitfinex-derivatives/quotes_BTCF0:USTF0_20240917
["timestamp","ask_amount","ask_price","bid_price","bid_amount"]
[1726550801951,0.14318812,58362.0,58361.0,0.002]
[1726550806244,0.09894047,58362.0,58361.0,0.002]
[1726550808048,0.004,58369.0,58362.0,0.51404]
[1726550808249,0.0008,58371.0,58370.0,0.085656]
[1726550808454,0.104,58380.0,58370.0,0.10988946]
[1726550808752,0.104,58380.0,58369.0,0.3608]
[1726550808753,0.1,58380.0,58377.0,0.05119731]
[1726550809257,0.1,58380.0,58376.0,0.05119731]
[1726550809860,0.1,58380.0,58378.0,0.085643]
[1726550810061,0.102,58380.0,58378.0,0.085643]
[1726550812154,0.101,58380.0,58378.0,0.085643]
[1726550812963,0.101,58380.0,58379.0,0.085642]
[1726550813359,0.101,58380.0,58378.0,0.002]
[1726550813360,0.19845599,58380.0,58378.0,0.002]
[1726550813557,0.3353523,58380.0,58378.0,0.002]
[1726550813859,0.09745599,58379.0,58378.0,0.002]
[1726550814857,0.09745599,58379.0,58375.0,0.446448]
[1726550815067,0.001,58379.0,58378.0,0.001]
[1726550815363,0.18312131,58379.0,58378.0,0.001]
[1726550815564,0.18312131,58379.0,58378.0,0.002]
[1726550816075,0.18312131,58379.0,58378.0,0.001]
[1726550816256,0.13128671,58379.0,58378.0,0.001]
[1726550816561,0.13128671,58379.0,58378.0,0.002]
[1726550817264,0.25074094,58379.0,58378.0,0.002]
[1726550818061,0.13128671,58379.0,58378.0,0.002]
[1726550818757,0.04564471,58379.0,58378.0,0.087644]
[1726550820658,0.04557484,58379.0,58378.0,0.087644]
[1726550821361,0.001,58379.0,58378.0,0.087644]
[1726550824468,0.001,58379.0,58378.0,0.448444]
[1726550828262,0.0455963,58379.0,58378.0,0.448444]
[1726550828758,0.1312383,58379.0,58378.0,0.3628]
[1726550828964,0.1804383,58379.0,58378.0,0.3628]
[1726550829160,0.29989253,58379.0,58378.0,0.3628]
[1726550830374,0.1804383,58379.0,58378.0,0.3628]
[1726550831060,0.05174154,58379.0,58378.0,0.97668]
[1726550831267,0.20513987,58382.0,58380.0,0.08564]
[1726550831465,0.085638,58382.0,58381.0,0.0008]
[1726550832168,0.085638,58382.0,58381.0,0.08644]
[1726550833368,0.086638,58382.0,58381.0,0.08744]
[1726550834576,0.086638,58382.0,58381.0,0.08844]
[1726550838779,0.086638,58382.0,58381.0,0.44924]
[1726550839367,0.086638,58382.0,58381.0,0.08844]
[1726550839777,0.086638,58382.0,58381.0,0.44924]
[1726550842184,0.086638,58382.0,58381.0,0.50042823]
[1726550843279,0.086638,58382.0,58381.0,0.44924]
[1726550847089,0.13114575,58382.0,58381.0,0.44924]
[1726550848289,0.13115072,58382.0,58381.0,0.08844]
[1726550848480,0.13115072,58382.0,58381.0,0.44924]
[1726550848880,0.04551272,58382.0,58381.0,0.54924]
[1726550851292,0.001,58382.0,58381.0,0.54924]
[1726550856294,0.1,58387.0,58381.0,0.54924]
[1726550856295,0.008,58389.0,58388.0,0.085629]
[1726550856502,0.01125604,58397.0,58388.0,0.95989078]
[1726550856795,0.0493,58398.0,58395.0,0.4616]
[1726550856999,0.0493,58398.0,58395.0,0.52982659]
[1726550857196,0.0475,58399.0,58397.0,0.05193212]
[1726550857388,0.0475,58399.0,58398.0,0.186415]
[1726550857591,0.0475,58399.0,58398.0,0.185615]
[1726550857800,0.0475,58399.0,58398.0,0.085615]
[1726550859096,0.133113,58399.0,58398.0,0.086615]
[1726550860303,0.133113,58399.0,58398.0,0.087615]
[1726550860797,0.233113,58399.0,58398.0,0.002]
[1726550863705,0.233113,58399.0,58398.0,0.3628]
[1726550863706,0.133113,58399.0,58398.0,0.3628]
[1726550865305,0.133113,58399.0,58398.0,0.002]
[1726550865510,0.133113,58399.0,58398.0,0.3628]
[1726550865709,0.133113,58399.0,58398.0,0.002]
[1726550865898,0.133113,58399.0,58398.0,0.3628]
[1726550866394,0.23064025,58399.0,58398.0,0.3628]
[1726550867212,0.23063643,58399.0,58398.0,0.3628]
[1726550867711,0.23063643,58399.0,58398.0,0.002]
[1726550867895,0.23063643,58399.0,58398.0,0.3628]
[1726550868099,0.23063643,58399.0,58398.0,0.27713228]
[1726550868614,0.17824086,58399.0,58398.0,0.27713228]
[1726550868799,0.085615,58398.0,58397.0,0.0008]
[1726550868995,0.13074286,58398.0,58397.0,0.3616]
[1726550869803,0.13074286,58398.0,58397.0,0.0008]
[1726550870007,0.13074286,58398.0,58397.0,0.3626]
[1726550870204,0.13074286,58398.0,58397.0,0.3636]
[1726550870408,0.13074286,58398.0,58397.0,0.4636]
[1726550871303,0.13074286,58398.0,58397.0,0.1028]
[1726550871612,0.13074286,58398.0,58397.0,0.4636]
[1726550872105,0.12999752,58398.0,58397.0,0.4636]
[1726550873610,0.085615,58398.0,58397.0,0.4636]
[1726550884110,0.085615,58398.0,58397.0,0.51473212]
[1726550885215,0.085615,58398.0,58397.0,0.4636]
[1726550886220,0.085615,58398.0,58397.0,0.53182659]
[1726550887005,0.085615,58398.0,58397.0,0.4636]
[1726550887620,0.085615,58398.0,58397.0,0.53182659]
[1726550888414,0.13018187,58398.0,58397.0,0.549216]
[1726550892719,0.18194456,58398.0,58397.0,0.549216]
[1726550893507,0.31884087,58398.0,58397.0,0.549216]
[1726550894417,0.18194456,58398.0,58397.0,0.549216]
[1726550894926,0.18195888,58398.0,58397.0,0.549216]
[1726550895119,0.31885519,58398.0,58397.0,0.549216]
[1726550895317,0.40447019,58398.0,58397.0,0.3636]
[1726550895516,0.40447019,58398.0,58397.0,0.0028]
[1726550895517,0.27123,58398.0,58397.0,0.0028]
[1726550903413,0.31560179,58398.0,58397.0,0.0028]
[1726550903622,0.36711952,58398.0,58397.0,0.0028]
[1726550904530,0.31560179,58398.0,58397.0,0.0028]
[1726550904920,0.36711284,58398.0,58397.0,0.0028]
[1726550909219,0.36725549,58398.0,58397.0,0.0028]
[1726550909624,0.43548955,58398.0,58397.0,0.0028]
[1726550910321,0.31566471,58398.0,58397.0,0.0028]
[1726550910527,0.27123,58398.0,58397.0,0.0028]
[1726550918834,0.31563488,58398.0,58397.0,0.0028]
[1726550920138,0.43545972,58398.0,58397.0,0.0028]
[1726550921429,0.31563488,58398.0,58397.0,0.0028]
[1726550921632,0.36719534,58398.0,58397.0,0.0028]
[1726550923839,0.04440488,58398.0,58397.0,0.4636]
[1726550924039,0.01113094,58402.0,58397.0,0.4636]
[1726550924337,0.04467361,58401.0,58397.0,0.4636]
[1726550924642,0.04467361,58400.0,58397.0,0.4636]
[1726550924841,0.04467361,58399.0,58397.0,0.4636]
[1726550925139,0.1,58403.0,58397.0,0.4626]
[1726550925343,0.04472713,58402.0,58397.0,0.4636]
[1726550925635,0.09655243,58404.0,58397.0,0.3636]
[1726550925636,0.085615,58398.0,58397.0,0.3636]
[1726550925845,0.185615,58398.0,58397.0,0.0028]
[1726550926834,0.185615,58398.0,58397.0,0.05399271]
[1726550927037,0.546415,58398.0,58397.0,0.05399271]
[1726550927237,0.546415,58398.0,58397.0,0.05299271]
[1726550927540,0.185615,58398.0,58397.0,0.0028]
[1726550928341,0.546415,58398.0,58397.0,0.0028]
[1726550928536,0.55730054,58398.0,58397.0,0.0028]
[1726550928738,0.19650054,58398.0,58397.0,0.0028]
[1726550930729,0.19650054,58398.0,58397.0,0.07104995]
[1726550931444,0.19650054,58398.0,58397.0,0.0028]
[1726550933347,0.19650054,58398.0,58397.0,0.07104995]
[1726550933841,0.24098784,58398.0,58397.0,0.0028]
[1726550935852,0.36086849,58398.0,58397.0,0.0028]
[1726550938647,0.36066308,58398.0,58397.0,0.0028]
[1726550940745,0.19650054,58398.0,58397.0,0.0028]
[1726550944861,0.09650054,58398.0,58397.0,0.47353477]
[1726550946851,0.09650054,58398.0,58397.0,0.47340704]
[1726550948260,0.09650054,58398.0,58397.0,0.11260704]
[1726550948757,0.09650054,58398.0,58397.0,0.07104672]
[1726550951055,0.09650054,58398.0,58397.0,0.0028]
[1726550951571,0.132412,58400.0,58398.0,0.085614]
[1726550951869,0.085612,58400.0,58399.0,0.06904048]
[1726550953569,0.085612,58400.0,58399.0,0.07004048]
[1726550954575,0.09641115,58400.0,58399.0,0.07104048]
[1726550955769,0.14090728,58400.0,58399.0,0.0028]
[1726550963975,0.09641115,58400.0,58399.0,0.07104048]
[1726550967481,0.09641115,58400.0,58399.0,0.0028]
[1726550968183,0.09641115,58400.0,58399.0,0.07107096]
[1726550968388,0.09641115,58400.0,58399.0,0.0028]
[1726550974493,0.19641115,58400.0,58399.0,0.0028]
[1726550977893,0.09641115,58400.0,58399.0,0.0028]
[1726550978292,0.09641115,58400.0,58399.0,0.088413]
[1726550978891,0.14095493,58400.0,58399.0,0.088413]
[1726550979400,0.05534293,58400.0,58399.0,0.188413]
[1726550979588,0.05534293,58400.0,58399.0,0.088413]
[1726550981296,0.14095493,58400.0,58399.0,0.088413]
[1726550984695,0.13015578,58400.0,58399.0,0.088413]
[1726550985997,0.085612,58400.0,58399.0,0.088413]
[1726550989709,0.185612,58400.0,58399.0,0.088413]
[1726550994005,0.2301375,58400.0,58399.0,0.088413]
[1726550995213,0.23016113,58400.0,58399.0,0.088413]
[1726550995505,0.23016113,58400.0,58399.0,0.0028]
[1726550999112,0.27896113,58400.0,58399.0,0.0028]
[1726551000005,0.27897768,58400.0,58399.0,0.0028]
[1726551000905,0.234412,58400.0,58399.0,0.0028]
[1726551003210,0.185612,58400.0,58399.0,0.0028]
[1726551003513,0.185612,58400.0,58399.0,0.088413]
[1726551003514,0.085612,58400.0,58399.0,0.088413]
[1726551003811,0.085612,58400.0,58399.0,0.17372141]
[1726551005312,0.085612,58400.0,58399.0,0.088413]
[1726551006425,0.085612,58400.0,58399.0,0.17372141]
[1726551006715,0.085612,58400.0,58399.0,0.088413]
[1726551009105,0.13032176,58400.0,58399.0,0.09957676]
[1726551010020,0.11104405,58402.0,58401.0,0.08561]
[1726551010206,0.11104405,58402.0,58401.0,0.08641]
[1726551010911,0.15574301,58402.0,58401.0,0.08641]
[1726551011116,0.19665305,58402.0,58401.0,0.08641]
[1726551011513,0.24135384,58402.0,58401.0,0.08741]
[1726551011720,0.36123449,58402.0,58401.0,0.08741]
[1726551011918,0.36123449,58402.0,58401.0,0.08841]
[1726551012311,0.24135384,58402.0,58401.0,0.08841]
[1726551013014,0.36123449,58402.0,58401.0,0.08841]
[1726551013611,0.36123449,58402.0,58401.0,0.0028]
[1726551014325,0.24135384,58402.0,58401.0,0.0028]
[1726551016118,0.19665305,58402.0,58401.0,0.07108672]
[1726551021419,0.085607,58403.0,58402.0,0.085609]
[1726551021616,0.085607,58403.0,58402.0,0.086409]
[1726551022724,0.085607,58403.0,58402.0,0.087409]
[1726551023327,0.085607,58403.0,58402.0,0.088409]
[1726551024936,0.13049529,58403.0,58402.0,0.088409]
[1726551027637,0.23049529,58403.0,58402.0,0.088409]
[1726551028439,0.35037124,58403.0,58402.0,0.088409]
[1726551029944,0.23049529,58403.0,58402.0,0.088409]
[1726551031151,0.185607,58403.0,58402.0,0.088409]
[1726551036237,0.185607,58403.0,58402.0,0.0028]
[1726551038135,0.185607,58403.0,58402.0,0.07108689]
[1726551042442,0.185607,58403.0,58402.0,0.0028]
[1726551044340,0.085607,58403.0,58402.0,0.0028]
[1726551045446,0.085607,58403.0,58402.0,0.088409]
[1726551045646,0.1,58405.0,58404.0,0.085606]
[1726551045848,0.1,58405.0,58404.0,0.447206]
[1726551046141,0.14509608,58405.0,58404.0,0.447206]
[1726551046950,0.14509608,58405.0,58404.0,0.448206]
[1726551047246,0.23070008,58405.0,58404.0,0.448206]
[1726551048038,0.13070008,58405.0,58404.0,0.448206]
[1726551048251,0.13070008,58405.0,58404.0,0.549206]
[1726551050546,0.13070008,58405.0,58404.0,0.188406]
[1726551051954,0.04509608,58405.0,58404.0,0.188406]
[1726551053149,0.1405,58406.0,58405.0,0.085604]
[1726551053340,0.1405,58406.0,58405.0,0.15467233]
[1726551055050,0.1405,58406.0,58405.0,0.15567233]
[1726551055354,0.0917,58406.0,58405.0,0.15667233]
[1726551057453,0.0917,58406.0,58405.0,0.088404]
[1726551059649,0.0917,58406.0,58405.0,0.15666441]
[1726551060161,0.0917,58406.0,58405.0,0.088404]
[1726551060456,0.0917,58406.0,58405.0,0.15666289]
[1726551060656,0.0917,58406.0,58405.0,0.088404]
[1726551061052,0.0917,58406.0,58405.0,0.15666534]
[1726551061251,0.0917,58406.0,58405.0,0.13959999]
[1726551061748,0.0917,58406.0,58405.0,0.088404]
[1726551062354,0.0917,58406.0,58405.0,0.13959999]
[1726551064464,0.0917,58406.0,58405.0,0.088404]
[1726551064764,0.0917,58406.0,58405.0,0.13959999]
[1726551067859,0.0917,58406.0,58405.0,0.13859999]
[1726551068057,0.0917,58406.0,58405.0,0.088404]
[1726551068260,0.1368268,58406.0,58405.0,0.088404]
[1726551069652,0.25670275,58406.0,58405.0,0.088404]
[1726551070258,0.32610485,58406.0,58405.0,0.088404]
[1726551070563,0.27990485,58406.0,58405.0,0.088404]
[1726551071852,0.27990485,58406.0,58405.0,0.087404]
[1726551072053,0.27990485,58406.0,58405.0,0.088404]
[1726551072355,0.23440485,58406.0,58405.0,0.088404]
[1726551072555,0.18927805,58406.0,58405.0,0.088404]
[1726551072755,0.04517092,58406.0,58405.0,0.0028]
[1726551072964,0.085596,58411.0,58405.0,0.0028]
[1726551072965,0.11984959,58407.0,58406.0,0.085603]
[1726551073157,0.16502052,58407.0,58406.0,0.186403]
[1726551073460,0.2335063,58411.0,58408.0,0.0856]
[1726551073461,0.11984959,58409.0,58408.0,0.0856]
[1726551073677,0.0979292,58409.0,58408.0,0.1864]
[1726551073958,0.13689631,58410.0,58409.0,0.085598]
[1726551074163,0.13689631,58410.0,58409.0,1.199998]
[1726551074557,0.18225249,58410.0,58409.0,1.199998]
[1726551074757,0.23491314,58410.0,58409.0,0.086398]
[1726551075257,0.28191314,58410.0,58409.0,0.086398]
[1726551075658,0.28191314,58410.0,58409.0,0.087398]
[1726551076265,0.004,58416.0,58409.0,1.58508548]
[1726551076474,0.004,58416.0,58415.0,0.4616]
[1726551076475,0.085588,58416.0,58415.0,0.4616]
[1726551076656,0.09646802,58416.0,58415.0,0.4616]
[1726551076861,0.09646802,58416.0,58415.0,0.42979454]
[1726551077564,0.19646802,58416.0,58415.0,0.3626]
[1726551077962,0.19646802,58416.0,58415.0,0.41373734]
[1726551078773,0.19646802,58416.0,58415.0,0.41473734]
[1726551079073,0.19646802,58416.0,58415.0,0.3636]
[1726551079461,0.01088002,58416.0,58415.0,0.44919]
[1726551079664,0.048,58417.0,58416.0,0.085588]
[1726551079959,0.048,58417.0,58416.0,0.186388]
[1726551081271,0.048,58417.0,58416.0,0.187388]
[1726551082571,0.048,58417.0,58416.0,0.188388]
[1726551083368,0.14624406,58417.0,58416.0,0.188388]
[1726551083773,0.15724349,58417.0,58416.0,0.188388]
[1726551084075,0.14624406,58417.0,58416.0,0.1991305]
[1726551087579,0.1461789,58417.0,58416.0,0.1991305]
[1726551087773,0.0981789,58417.0,58416.0,0.1991305]
[1726551088094,0.11962287,58417.0,58416.0,0.1991305]
[1726551088383,0.11962287,58418.0,58417.0,0.085587]
[1726551088574,0.16515378,58418.0,58417.0,0.086387]
[1726551089574,0.25073878,58418.0,58417.0,0.447187]
[1726551089982,0.13111591,58418.0,58417.0,0.447187]
[1726551090278,0.18398013,58418.0,58417.0,0.448187]
[1726551090478,0.18396756,58418.0,58417.0,0.448187]
[1726551091173,0.18396756,58418.0,58417.0,0.449187]
[1726551091367,0.085585,58418.0,58417.0,0.449187]
[1726551095179,0.0483,58424.0,58417.0,0.3636]
[1726551095380,0.0483,58424.0,58422.0,0.4616]
[1726551095381,0.085578,58423.0,58422.0,0.4616]
[1726551095580,0.004,58430.0,58422.0,0.52979454]
[1726551095789,0.085568,58430.0,58429.0,0.3616]
[1726551096274,0.180662,58434.0,58429.0,0.3616]
[1726551096476,0.180662,58434.0,58433.0,0.0008]
[1726551096477,0.0951,58434.0,58433.0,0.0008]
[1726551096681,0.0951,58434.0,58429.0,0.3616]
[1726551096682,0.085568,58430.0,58429.0,0.3608]
[1726551096873,0.086368,58430.0,58429.0,0.3608]
[1726551098083,0.086368,58430.0,58429.0,0.3618]
[1726551098386,0.20596439,58430.0,58429.0,0.3618]
[1726551098594,0.13240318,58430.0,58429.0,0.3618]
[1726551098782,0.12240318,58430.0,58429.0,0.3618]
[1726551099295,0.076368,58430.0,58429.0,0.3628]
[1726551100779,0.12247877,58430.0,58429.0,0.3628]
[1726551101497,0.21959639,58436.0,58432.0,0.17113]
[1726551101498,0.11952654,58433.0,58432.0,0.17113]
[1726551101695,0.004,58440.0,58439.0,0.085555]
[1726551101880,0.11952654,58442.0,58440.0,0.085553]
[1726551102081,0.23339631,58445.0,58441.0,0.0008]
[1726551102082,0.20507554,58443.0,58441.0,0.0008]
[1726551102277,0.21602654,58445.0,58442.0,0.0008]
[1726551102484,0.21602654,58445.0,58444.0,0.0008]
[1726551102684,0.30157254,58445.0,58442.0,0.08555]
[1726551102983,0.11952654,58444.0,58442.0,0.08555]
[1726551103294,0.11952654,58444.0,58443.0,0.085549]
[1726551103485,0.182046,58445.0,58444.0,0.085547]
[1726551104084,0.182046,58445.0,58444.0,0.086347]
[1726551104682,0.182046,58445.0,58444.0,0.0008]
[1726551104892,0.182046,58445.0,58444.0,0.0018]
[1726551106291,0.182046,58445.0,58444.0,0.0028]
[1726551107193,0.004,58450.0,58444.0,0.3636]
[1726551107492,0.00088,58453.0,58449.0,0.4608]
[1726551107493,0.0918,58453.0,58449.0,0.4608]
[1726551107686,0.177334,58453.0,58452.0,0.186335]
[1726551108396,0.0918,58453.0,58452.0,0.186335]
[1726551109698,0.004,58458.0,58454.0,0.085531]
[1726551109889,0.085527,58458.0,58457.0,0.1008]
[1726551110191,0.09628962,58458.0,58457.0,0.1008]
[1726551111286,0.09628962,58458.0,58457.0,0.1018]
[1726551111594,0.09628962,58458.0,58457.0,0.0018]
[1726551112101,0.09628962,58458.0,58457.0,0.0028]
[1726551112294,0.28181662,58458.0,58457.0,0.0028]
[1726551112487,0.19628962,58458.0,58457.0,0.0028]
[1726551117503,0.28181662,58458.0,58457.0,0.0028]
[1726551119607,0.36734362,58458.0,58457.0,0.0028]
[1726551121508,0.46728886,58458.0,58457.0,0.00131654]
[1726551121709,0.41439215,58458.0,58457.0,0.00131654]
[1726551122106,0.77519215,58458.0,58457.0,0.00131654]
[1726551123395,0.77519215,58458.0,58457.0,5.4e-07]
[1726551123600,0.085538,58451.0,58436.0,0.01361133]
[1726551123797,0.57995863,58447.0,58440.0,0.1]
[1726551123995,0.59259153,58447.0,58442.0,0.1]
[1726551124194,0.59232159,58447.0,58442.0,0.1]
[1726551124395,0.64572993,58447.0,58442.0,0.1]
[1726551124999,0.73127293,58447.0,58442.0,0.1]
[1726551125297,0.64572993,58447.0,58439.0,0.1]
[1726551125498,0.73127293,58447.0,58439.0,0.1]
[1726551126002,0.73227293,58447.0,58439.0,0.1]
[1726551126506,0.73327293,58447.0,58439.0,0.1]
[1726551126707,0.16730466,58447.0,58446.0,0.18811033]
[1726551126902,0.13352159,58447.0,58446.0,0.00256633]
[1726551127103,0.13352159,58447.0,58446.0,0.10256633]
[1726551128504,0.087543,58447.0,58446.0,0.10256633]
[1726551129014,0.087543,58447.0,58446.0,0.00256633]
[1726551129208,0.087543,58447.0,58446.0,0.10256633]
[1726551130212,0.002,58447.0,58446.0,0.18811033]
[1726551130909,0.002,58447.0,58446.0,0.23914022]
[1726551131113,0.002,58447.0,58446.0,0.18811033]
[1726551131303,0.002,58447.0,58446.0,0.23914022]
[1726551131502,0.002,58447.0,58446.0,0.18811033]
[1726551132716,0.002,58447.0,58446.0,1.30139033]
[1726551133013,0.002,58447.0,58446.0,0.70139033]
[1726551136809,0.002,58447.0,58440.0,0.0452]
[1726551136810,0.085547,58444.0,58440.0,0.0452]
[1726551137010,0.3628,58447.0,58443.0,0.1]
[1726551137215,0.002,58447.0,58446.0,0.1]
[1726551137518,0.087544,58447.0,58446.0,0.1]
[1726551137725,0.13410801,58447.0,58446.0,0.1]
[1726551137925,0.13418808,58447.0,58446.0,0.1]
[1726551138225,0.13410195,58447.0,58446.0,0.1]
[1726551138818,0.13310195,58447.0,58446.0,0.1]
[1726551140122,0.13410195,58447.0,58446.0,0.1]
[1726551141619,0.13410195,58447.0,58446.0,0.185544]
[1726551142213,0.04855795,58447.0,58446.0,0.185544]
[1726551142411,0.002,58447.0,58446.0,0.185544]
[1726551144118,0.087543,58447.0,58446.0,0.06803918]
[1726551144317,0.087543,58447.0,58446.0,0.16803918]
[1726551145216,0.002,58447.0,58446.0,0.25358318]
[1726551149627,0.087543,58447.0,58446.0,0.25358318]
[1726551150929,0.087543,58447.0,58446.0,0.16803918]
[1726551151227,0.087543,58447.0,58446.0,0.1]
[1726551151528,0.087543,58447.0,58446.0,0.15103872]
[1726551152231,0.087543,58447.0,58446.0,0.23658272]
[1726551152528,0.087543,58447.0,58446.0,0.185544]
[1726551152734,0.087543,58447.0,58446.0,0.23657999]
[1726551154628,0.087543,58447.0,58446.0,0.185544]
[1726551156534,0.087543,58447.0,58446.0,0.25358318]
[1726551158632,0.13405973,58447.0,58446.0,0.185544]
[1726551161835,0.13400984,58447.0,58446.0,0.185544]
[1726551163533,0.13400984,58447.0,58446.0,0.085544]
[1726551163733,0.13400984,58447.0,58446.0,0.185544]
[1726551164125,0.14465699,58447.0,58446.0,0.185544]
[1726551164530,0.26398306,58447.0,58446.0,0.185544]
[1726551164738,0.18160984,58447.0,58446.0,0.185544]
[1726551167435,0.09606684,58447.0,58446.0,0.185544]
[1726551171140,0.04858003,58447.0,58446.0,0.185544]
[1726551172741,0.04867305,58447.0,58446.0,0.185544]
[1726551172950,0.002,58447.0,58446.0,0.185544]
[1726551174034,0.002,58447.0,58446.0,0.27078718]
[1726551174238,0.002,58447.0,58446.0,0.37851416]
[1726551175939,0.002,58447.0,58446.0,0.29327098]
[1726551177432,0.002,58447.0,58446.0,0.37838822]
[1726551180439,0.002,58447.0,58446.0,0.27066124]
[1726551180648,0.002,58447.0,58446.0,0.37824236]
[1726551181547,0.002,58447.0,58446.0,0.27066124]
[1726551183845,0.002,58447.0,58446.0,0.63146124]
[1726551185249,0.002,58447.0,58446.0,0.446344]
[1726551185450,0.002,58447.0,58446.0,0.546344]
[1726551191573,0.04831813,58447.0,58446.0,0.546344]
[1726551192548,0.04831813,58447.0,58446.0,0.185544]
[1726551195956,0.002,58447.0,58446.0,0.185544]
[1726551198255,0.002,58447.0,58446.0,0.085544]
[1726551198555,0.002,58447.0,58446.0,0.185544]
[1726551202761,0.002,58447.0,58446.0,0.546344]
[1726551203355,0.087543,58447.0,58444.0,0.01116618]
[1726551203562,0.0488,58446.0,58442.0,0.08511724]
[1726551203768,0.0004,58445.0,58442.0,0.01097173]
[1726551203964,0.0004,58445.0,58441.0,0.08511724]
[1726551204266,0.0004,58442.0,58441.0,0.17066924]
[1726551204567,0.0004,58442.0,58441.0,0.27879538]
[1726551204865,0.0004,58442.0,58441.0,0.29367814]
[1726551205575,0.0014,58442.0,58441.0,0.29367814]
[1726551206972,0.0014,58442.0,58441.0,0.30446722]
[1726551210964,0.0014,58442.0,58441.0,0.19634108]
[1726551215372,0.0014,58442.0,58441.0,0.55714108]
[1726551216369,0.0014,58442.0,58441.0,0.45714108]
[1726551216569,0.0014,58442.0,58441.0,0.55714108]
[1726551218968,0.0014,58442.0,58441.0,0.79406294]
[1726551219767,0.0004,58445.0,58444.0,0.085547]
[1726551219972,0.0004,58445.0,58444.0,0.19363368]
[1726551220172,0.0004,58445.0,58444.0,0.19403368]
[1726551220776,0.085546,58445.0,58444.0,0.20848668]
[1726551220984,0.086546,58445.0,58444.0,0.31069597]
[1726551221681,0.086546,58445.0,58444.0,0.20848668]
[1726551221878,0.001,58445.0,58444.0,0.20848668]
[1726551222388,0.002,58445.0,58444.0,0.20848668]
[1726551222681,0.087546,58445.0,58444.0,0.20848668]
[1726551224279,0.087546,58445.0,58444.0,0.29403368]
[1726551225974,0.087546,58445.0,58444.0,0.185947]
[1726551225975,0.13384762,58445.0,58444.0,0.185947]
[1726551231178,0.04830162,58445.0,58444.0,0.185947]
[1726551231776,0.04829828,58445.0,58444.0,0.185947]
[1726551234079,0.04829828,58445.0,58444.0,0.293933]
[1726551234080,0.002,58445.0,58444.0,0.293933]
[1726551236184,0.002,58445.0,58444.0,0.39614749]
[1726551236579,0.002,58445.0,58444.0,0.29394714]
[1726551237572,0.002,58445.0,58444.0,0.19394714]
[1726551237773,0.002,58445.0,58444.0,0.29394714]
[1726551240889,0.002,58445.0,58444.0,0.185947]
[1726551241077,0.04838956,58445.0,58444.0,0.185947]
[1726551241993,0.002,58445.0,58444.0,0.185947]
[1726551242377,0.04836882,58445.0,58444.0,0.185947]
[1726551244383,0.002,58445.0,58444.0,0.185947]
[1726551245493,0.04837533,58445.0,58444.0,0.185947]
[1726551247490,0.002,58445.0,58444.0,0.185947]
[1726551248092,0.10365873,58445.0,58444.0,0.185947]
[1726551248390,0.11932607,58452.0,58444.0,0.185947]
[1726551248391,0.1367951,58471.0,58458.0,0.75459441]
[1726551248588,0.54948224,58473.0,58470.0,0.1]
[1726551248589,0.36168,58473.0,58470.0,0.1]
[1726551248789,0.36168,58473.0,58471.0,0.085508]
[1726551248790,0.10159705,58472.0,58471.0,0.085508]
[1726551248993,0.3608,58473.0,58471.0,0.13654345]
[1726551249200,4e-05,58476.0,58472.0,0.15183202]
[1726551249389,4e-05,58476.0,58475.0,0.1008]
[1726551249592,4e-05,58476.0,58475.0,0.1]
[1726551250787,4e-05,58476.0,58475.0,1.21304]
[1726551250991,0.36168,58479.0,58475.0,1.21304]
[1726551250992,0.3608,58479.0,58478.0,0.085497]
[1726551251290,0.3608,58484.0,58482.0,0.085491]
[1726551251496,0.3608,58484.0,58483.0,0.1008]
[1726551252894,0.3608,58484.0,58483.0,0.1028]
[1726551253100,0.3608,58484.0,58483.0,0.0028]
[1726551253401,0.3608,58484.0,58483.0,0.1028]
[1726551253893,0.36336465,58490.0,58483.0,0.1028]
[1726551254088,0.36336465,58490.0,58489.0,0.1008]
[1726551254391,0.3608,58496.0,58489.0,0.1008]
[1726551254589,0.085466,58500.0,58495.0,0.1008]
[1726551254802,0.3608,58502.0,58499.0,0.1008]
[1726551254803,0.085464,58501.0,58499.0,0.1008]
[1726551255003,0.085464,58501.0,58500.0,0.0008]
[1726551255191,0.085464,58501.0,58500.0,0.1008]
[1726551255999,0.17639884,58501.0,58495.0,0.0018]
[1726551256195,0.09093484,58500.0,58493.0,0.3608]
[1726551256699,0.17640084,58500.0,58499.0,0.1]
[1726551258190,0.12754507,58500.0,58499.0,0.1]
[1726551259007,0.12754507,58500.0,58499.0,0.102]
[1726551259597,0.17572332,58500.0,58499.0,0.002]
[1726551260100,0.12754507,58500.0,58499.0,0.002]
[1726551260500,0.12754507,58500.0,58491.0,0.00256449]
[1726551260501,0.09035669,58500.0,58492.0,0.1]
[1726551260710,0.3608,58496.0,58495.0,0.1]
[1726551261003,0.40287907,58496.0,58495.0,0.1]
[1726551261397,0.446271,58496.0,58495.0,0.1]
[1726551261601,0.0008,58501.0,58499.0,0.001]
[1726551261903,0.12712454,58500.0,58499.0,0.002]
[1726551262109,0.12712454,58500.0,58499.0,0.001]
[1726551262402,0.085465,58500.0,58498.0,0.245468]
[1726551262705,0.085465,58500.0,58499.0,0.001]
[1726551263305,0.0008,58501.0,58499.0,0.001]
[1726551263502,0.0008,58501.0,58500.0,0.0008]
[1726551264604,0.0008,58501.0,58500.0,0.086265]
[1726551264808,0.0008,58501.0,58500.0,0.0008]
[1726551265000,0.086264,58501.0,58500.0,0.0008]
[1726551265200,0.086264,58501.0,58500.0,0.0018]
[1726551265201,0.088264,58501.0,58500.0,0.0018]
[1726551265706,0.248264,58501.0,58500.0,0.0018]
[1726551265907,0.085473,58495.0,58489.0,0.004]
[1726551266098,0.085477,58492.0,58489.0,0.01116221]
[1726551266294,0.085877,58492.0,58489.0,0.01116221]
[1726551266500,0.0933,58494.0,58490.0,0.16]
[1726551266699,0.178774,58494.0,58493.0,0.1604]
[1726551267607,0.0933,58494.0,58493.0,0.1604]
[1726551267811,0.0004,58495.0,58493.0,0.1604]